bitfinex/quotes_BTCUSD_20250421
["timestamp","ask_amount","ask_price","bid_price","bid_amount"]
[1745274349855,0.41743186,86976.0,86974.0,0.22995377]
[1745274350055,0.003,86976.0,86974.0,0.22995377]
[1745274350454,0.2299474,86977.0,86974.0,0.22995377]
[1745274350656,0.01149821,86970.0,86967.0,0.01149861]
[1745274350907,0.22995841,86973.0,86971.0,0.01149808]
[1745274351110,0.24145339,86974.0,86971.0,0.22996027]
[1745274351499,0.24145339,86974.0,86971.0,0.22996099]
[1745274351704,0.22995118,86975.0,86972.0,0.22995902]
[1745274351939,0.001,86976.0,86972.0,0.24145697]
[1745274352122,0.23094904,86976.0,86974.0,0.22995136]
[1745274352255,0.01249742,86976.0,86974.0,0.22995377]
[1745274352460,0.22995584,86974.0,86972.0,0.01149795]
[1745274352660,0.24144376,86977.0,86974.0,0.01149768]
[1745274353129,0.22994892,86976.0,86974.0,0.24145145]
[1745274353333,0.22994892,86976.0,86974.0,0.01149768]
[1745274353950,0.07388162,86975.0,86974.0,0.01149768]
[1745274354671,0.07388162,86975.0,86974.0,0.24145145]
[1745274356080,0.07488162,86975.0,86974.0,0.24145145]
[1745274356441,0.07588162,86975.0,86974.0,0.24145145]
[1745274357439,0.07588162,86975.0,86974.0,0.22995377]
[1745274360787,0.07588162,86975.0,86974.0,0.34370971]
[1745274360989,0.002,86975.0,86974.0,0.34370971]
[1745274361212,0.10034517,86975.0,86974.0,0.34370971]
[1745274361413,0.001,86975.0,86974.0,0.34370971]
[1745274361764,0.002,86975.0,86974.0,0.34370971]
[1745274362390,0.002,86975.0,86971.0,0.24145479]
[1745274362596,0.001,86975.0,86974.0,0.22995377]
[1745274363396,0.22996129,86972.0,86968.0,0.01149848]
[1745274363601,0.01149782,86973.0,86971.0,0.22996147]
[1745274363792,0.01149742,86976.0,86974.0,0.22995334]
[1745274364002,0.24144868,86975.0,86972.0,0.22995695]
[1745274364458,0.24244868,86975.0,86972.0,0.22995695]
[1745274364665,0.22996127,86972.0,86969.0,0.22996643]
[1745274364884,0.24146202,86971.0,86967.0,0.01149861]
[1745274365458,0.24146469,86970.0,86965.0,0.24147405]
[1745274365703,0.24146469,86970.0,86966.0,0.22997493]
[1745274365704,0.24146741,86969.0,86966.0,0.22997493]
[1745274365876,0.24146954,86968.0,86965.0,0.24147143]
[1745274366174,0.01149887,86965.0,86962.0,0.24148467]
[1745274366378,0.01149914,86963.0,86957.0,0.25280216]
[1745274366605,0.01149914,86963.0,86957.0,0.12525587]
[1745274366982,0.22998863,86961.0,86959.0,0.24149092]
[1745274367199,0.22998863,86961.0,86959.0,0.22999125]
[1745274367636,0.24148217,86963.0,86960.0,0.22998969]
[1745274367884,0.2414821,86963.0,86960.0,0.22998969]
[1745274368118,0.2414821,86963.0,86958.0,0.0114998]
[1745274368119,0.41543186,86972.0,86971.0,0.22996171]
[1745274368332,0.41543186,86972.0,86971.0,0.34371765]
[1745274368549,0.41543186,86972.0,86971.0,0.39351765]
[1745274369604,0.41643186,86972.0,86971.0,0.39351765]
[1745274369944,0.51477703,86972.0,86971.0,0.39351765]
[1745274370539,0.51577703,86972.0,86971.0,0.39351765]
[1745274373555,0.10034517,86972.0,86971.0,0.39351765]
[1745274373967,0.002,86972.0,86971.0,0.39351765]
[1745274375032,0.002,86972.0,86971.0,0.4080585]
[1745274375861,0.001,86972.0,86971.0,0.4080585]
[1745274376094,0.0001371,86979.0,86978.0,0.2299432]
[1745274376318,0.0001371,86979.0,86978.0,0.34369914]
[1745274376555,0.09847329,86979.0,86978.0,0.34369914]
[1745274376773,0.0001371,86979.0,86978.0,0.34369914]
[1745274376987,0.09847329,86979.0,86978.0,0.34369914]
[1745274377117,0.0001371,86979.0,86978.0,0.34369914]
[1745274377334,0.10047329,86979.0,86978.0,0.34369914]
[1745274377563,0.0021371,86979.0,86978.0,0.34369914]
[1745274377773,0.07598348,86979.0,86978.0,0.34369914]
[1745274377981,0.10047329,86979.0,86978.0,0.34369914]
[1745274378900,0.10047329,86979.0,86978.0,0.35823999]
[1745274379813,0.0021371,86979.0,86978.0,0.35823999]
[1745274383528,0.0021371,86979.0,86978.0,0.36948403]
[1745274389158,0.0021371,86979.0,86978.0,0.35823999]
[1745274392451,0.0011371,86979.0,86978.0,0.35823999]
[1745274392767,0.0001371,86979.0,86978.0,0.35823999]
[1745274392958,0.0021371,86979.0,86978.0,0.35823999]
[1745274393538,0.0021371,86979.0,86978.0,0.40603999]
[1745274394156,0.0021371,86979.0,86978.0,0.45373999]
[1745274394356,0.0021371,86979.0,86978.0,0.79373999]
[1745274394540,0.0011371,86979.0,86978.0,0.79373999]
[1745274394768,0.0021371,86979.0,86978.0,0.79373999]
[1745274395539,0.0011371,86979.0,86978.0,0.79373999]
[1745274404450,0.0011371,86979.0,86978.0,0.74603999]
[1745274411979,0.0011371,86979.0,86957.0,0.01149993]
[1745274411980,0.01149927,86962.0,86957.0,0.01149993]
[1745274412191,0.01149755,86975.0,86970.0,0.22996295]
[1745274412407,0.22996045,86972.0,86969.0,0.20590512]
[1745274412623,0.2414584,86972.0,86969.0,0.20590512]
[1745274413010,0.09841299,86974.0,86969.0,0.4473694]
[1745274413212,0.10991067,86974.0,86969.0,0.4473694]
[1745274413417,0.24145424,86973.0,86970.0,0.22996359]
[1745274413623,0.22996171,86971.0,86968.0,0.01149848]
[1745274413858,0.24145745,86972.0,86969.0,0.22996696]
[1745274414052,0.07378984,86970.0,86969.0,0.22996696]
[1745274414269,0.22995803,86973.0,86969.0,0.01149834]
[1745274414487,0.01149795,86972.0,86969.0,0.24146317]
[1745274414708,0.01149782,86973.0,86970.0,0.22996209]
[1745274414908,0.2414567,86974.0,86971.0,0.24145717]
[1745274415130,0.001,86972.0,86971.0,0.01149808]
[1745274415764,0.001,86972.0,86970.0,0.229964]
[1745274415972,0.23095985,86972.0,86969.0,0.24146317]
[1745274416192,0.23095985,86972.0,86967.0,0.01149861]
[1745274416193,0.01149808,86971.0,86964.0,0.32537367]
[1745274416441,0.22996681,86970.0,86966.0,0.22997269]
[1745274416621,0.22996681,86970.0,86967.0,0.34372722]
[1745274416871,0.24245912,86973.0,86967.0,0.12525455]
[1745274416984,0.24145912,86973.0,86967.0,0.12525455]
[1745274417188,0.001,86972.0,86970.0,0.24145992]
[1745274418587,0.24145912,86973.0,86970.0,0.24145992]
[1745274418991,0.22995919,86972.0,86970.0,0.24145992]
[1745274419992,0.23095919,86972.0,86970.0,0.24145992]
[1745274420386,0.001,86972.0,86970.0,0.24145992]
[1745274421819,0.001,86972.0,86971.0,0.22996171]
[1745274422914,0.24144615,86976.0,86972.0,0.24145691]
[1745274423141,0.22995286,86975.0,86972.0,0.24145691]
[1745274423396,0.24144615,86976.0,86973.0,0.01366777]
[1745274423626,0.24144615,86976.0,86974.0,0.01366777]
[1745274424068,0.24244615,86976.0,86974.0,0.01366777]
[1745274424215,0.24244615,86976.0,86975.0,0.01366777]
[1745274424428,0.001,86976.0,86975.0,0.2436189]
[1745274424788,0.0011371,86979.0,86978.0,0.2299432]
[1745274425191,0.09939295,86979.0,86978.0,0.2299432]
[1745274425357,0.0011371,86979.0,86978.0,0.24361097]
[1745274425726,0.09939295,86979.0,86978.0,0.24361097]
[1745274425936,0.0011371,86979.0,86978.0,0.24361097]
[1745274426150,0.07590314,86979.0,86978.0,0.24361097]
[1745274426359,0.10039295,86979.0,86978.0,0.24361097]
[1745274426712,0.10239295,86979.0,86978.0,0.24361097]
[1745274427113,0.10239295,86979.0,86978.0,0.01366777]
[1745274427365,0.33233351,86979.0,86978.0,0.01366777]
[1745274430854,0.10239295,86979.0,86978.0,0.01366777]
[1745274431600,0.33233351,86979.0,86978.0,0.01366777]
[1745274432118,0.22994414,86978.0,86976.0,0.01149742]
[1745274432344,0.0983073,86977.0,86976.0,0.24144591]
[1745274432547,0.0983073,86977.0,86976.0,0.01149742]
[1745274432809,0.0983073,86977.0,86976.0,0.24144591]
[1745274433230,0.0983073,86977.0,86976.0,0.25511997]
[1745274434091,0.0993073,86977.0,86976.0,0.25511997]
[1745274434443,0.0993073,86977.0,86976.0,0.02517148]
[1745274434655,0.1003073,86977.0,86976.0,0.02517148]
[1745274435019,0.1003073,86977.0,86976.0,0.25511997]
[1745274435236,0.1003073,86977.0,86976.0,0.02517148]
[1745274435652,0.1003073,86977.0,86976.0,0.01367406]
[1745274436283,0.1003073,86977.0,86976.0,0.24362255]
[1745274436799,0.1003073,86977.0,86976.0,0.01367406]
[1745274437608,0.1003073,86977.0,86976.0,0.24362255]
[1745274437819,0.1003073,86977.0,86976.0,0.01367406]
[1745274438870,0.1003073,86977.0,86976.0,0.24362255]
[1745274440092,0.33025314,86977.0,86976.0,0.01367406]
[1745274440707,0.1003073,86977.0,86976.0,0.24362255]
[1745274442196,0.1003073,86977.0,86976.0,0.29262255]
[1745274442415,0.002,86977.0,86976.0,0.29262255]
[1745274443020,0.002,86977.0,86976.0,0.34122255]
[1745274443370,0.1003073,86977.0,86976.0,0.34122255]
[1745274443571,0.001,86977.0,86976.0,0.34122255]
[1745274443927,0.002,86977.0,86976.0,0.34122255]
[1745274444103,0.001,86977.0,86976.0,0.34122255]
[1745274444330,0.002,86977.0,86976.0,0.34122255]
[1745274445329,0.10034138,86977.0,86976.0,0.34122255]
[1745274446967,0.002,86977.0,86976.0,0.34122255]
[1745274447131,0.10034138,86977.0,86976.0,0.34122255]
[1745274448371,0.002,86977.0,86976.0,0.34122255]
[1745274449233,0.002,86977.0,86976.0,0.34124464]
[1745274453858,0.10034394,86977.0,86976.0,0.34124464]
[1745274454120,0.002,86977.0,86976.0,0.34124464]
[1745274454973,0.07585942,86977.0,86976.0,0.34124464]
[1745274455125,0.002,86977.0,86976.0,0.34124464]
[1745274456841,0.10034394,86977.0,86976.0,0.34124464]
[1745274457055,0.23194584,86977.0,86976.0,0.01369615]
[1745274457266,0.10034394,86977.0,86976.0,0.24364464]
[1745274458394,0.10034394,86977.0,86976.0,0.01369615]
[1745274458546,0.10034394,86977.0,86976.0,0.24364464]
[1745274458889,0.10034394,86977.0,86976.0,0.01369615]
[1745274459108,0.10034394,86977.0,86976.0,0.24364464]
[1745274462549,0.10034394,86977.0,86976.0,0.01369615]
[1745274462888,0.10034394,86977.0,86976.0,0.24364464]
[1745274463525,0.10034394,86977.0,86976.0,0.01369615]
[1745274465346,0.33028978,86977.0,86976.0,0.01369615]
[1745274466570,0.10034394,86977.0,86976.0,0.01369615]
[1745274466799,0.33028978,86977.0,86976.0,0.01369615]
[1745274479387,0.10034394,86977.0,86976.0,0.01369615]
[1745274480395,0.10034394,86977.0,86976.0,0.24364464]
[1745274480614,0.002,86977.0,86976.0,0.29194464]
[1745274480828,0.1003243,86977.0,86976.0,0.29194464]
[1745274481039,0.002,86977.0,86976.0,0.29194464]
[1745274481809,0.1003243,86977.0,86976.0,0.29194464]
[1745274482023,0.002,86977.0,86976.0,0.29194464]
[1745274482241,0.1003243,86977.0,86976.0,0.29194464]
[1745274486203,0.002,86977.0,86976.0,0.29194464]
[1745274486448,0.002,86977.0,86976.0,0.46954143]
[1745274488982,0.001,86977.0,86976.0,0.46954143]
[1745274489254,0.0001371,86979.0,86978.0,0.24448405]
[1745274489486,0.0001371,86979.0,86978.0,0.35823999]
[1745274489891,0.0001371,86979.0,86978.0,0.37193614]
[1745274490895,0.0011371,86979.0,86978.0,0.37193614]
[1745274491097,0.0021371,86979.0,86978.0,0.37193614]
[1745274492649,0.0021371,86979.0,86978.0,0.42003614]
[1745274494063,0.0001371,86979.0,86978.0,0.42003614]
[1745274540982,0.23007766,86979.0,86978.0,0.01369615]
[1745274541205,0.3733788,86979.0,86978.0,0.01369615]
[1745274541435,0.42572917,86979.0,86978.0,0.01369615]
[1745274541878,0.42572917,86979.0,86957.0,0.34]
[1745274541879,0.01149914,86963.0,86957.0,0.34]
[1745274542089,0.01149874,86966.0,86958.0,0.11375594]
[1745274542319,0.22999344,86959.0,86958.0,0.11375594]
[1745274542806,0.32834495,86959.0,86958.0,0.11375594]
[1745274543246,0.09835151,86959.0,86958.0,0.34375203]
[1745274543470,0.09835151,86959.0,86958.0,0.11375594]
[1745274543695,0.09835151,86959.0,86958.0,0.35829288]
[1745274544148,0.45980573,86994.0,86958.0,0.35829288]
[1745274544149,0.22996142,86972.0,86966.0,0.22997275]
[1745274544362,0.01149821,86970.0,86966.0,0.24147149]
[1745274544575,0.01149821,86970.0,86968.0,0.22996896]
[1745274544989,0.02446337,86969.0,86968.0,0.22996896]
[1745274545454,0.02446337,86969.0,86967.0,0.01149861]
[1745274545599,0.09835151,86969.0,86967.0,0.24147086]
[1745274546026,0.09935151,86969.0,86968.0,0.22996964]
[1745274546225,0.09935151,86969.0,86967.0,0.24147086]
[1745274546811,0.10035151,86969.0,86967.0,0.24147086]
[1745274547118,0.09835151,86969.0,86968.0,0.34372558]
[1745274547325,0.09935151,86969.0,86968.0,0.34372558]
[1745274547526,0.001,86969.0,86968.0,0.34372558]
[1745274547731,0.07488814,86969.0,86968.0,0.34372558]
[1745274547945,0.001,86969.0,86968.0,0.34372558]
[1745274548159,0.07488814,86969.0,86968.0,0.34372558]
[1745274548376,0.01149755,86975.0,86971.0,0.24145729]
[1745274548582,0.24144896,86975.0,86972.0,0.24145546]
[1745274549058,0.0737738,86974.0,86973.0,0.22995642]
[1745274549268,0.0737738,86974.0,86967.0,0.01149861]
[1745274549269,0.01150033,86954.0,86948.0,0.049]
[1745274549470,0.07382934,86953.0,86949.0,0.11375594]
[1745274549680,0.07382934,86953.0,86950.0,0.24151776]
[1745274549887,0.24150897,86954.0,86952.0,0.2300116]
[1745274550108,0.07382934,86953.0,86951.0,0.35526988]
[1745274550339,0.07382934,86953.0,86952.0,0.23001196]
[1745274550539,0.07382934,86953.0,86951.0,0.35526988]
[1745274550772,0.2415056,86955.0,86952.0,0.23001196]
[1745274550988,0.07383198,86952.0,86951.0,0.35527127]
[1745274551201,0.24149722,86958.0,86954.0,0.24150482]
[1745274551617,0.24149376,86959.0,86955.0,0.24150298]
[1745274551803,0.01149954,86960.0,86955.0,0.24150298]
[1745274552018,0.24149095,86960.0,86957.0,0.2299982]
[1745274552214,0.24149095,86960.0,86958.0,0.22999551]
[1745274552516,0.24149095,86960.0,86957.0,0.23045557]
[1745274552953,0.24249095,86960.0,86957.0,0.23045557]
[1745274554372,0.24149095,86960.0,86957.0,0.23045557]
[1745274555082,0.24249095,86960.0,86957.0,0.23045557]
[1745274555511,0.24349095,86960.0,86957.0,0.23045557]
[1745274556408,0.002,86960.0,86959.0,0.22999344]
[1745274557539,0.001,86960.0,86959.0,0.22999344]
[1745274557688,0.002,86960.0,86959.0,0.22999344]
[1745274558637,0.001,86960.0,86959.0,0.22999344]
[1745274558788,0.002,86960.0,86959.0,0.22999344]
[1745274558984,0.4159,86962.0,86961.0,0.22998815]
[1745274559415,0.4159,86962.0,86960.0,0.22998884]
[1745274560865,0.4159,86962.0,86961.0,0.22998815]
[1745274561076,0.4159,86964.0,86961.0,0.22998815]
[1745274561344,0.4159,86964.0,86962.0,0.22998533]
[1745274562126,0.64688068,86964.0,86962.0,0.22998533]
[1745274562514,0.64788068,86964.0,86962.0,0.22998533]
[1745274562859,0.64688068,86964.0,86962.0,0.22998533]
[1745274563059,0.64788068,86964.0,86962.0,0.22998533]
[1745274563976,0.07374861,86963.0,86961.0,0.22998815]
[1745274565120,0.07574861,86963.0,86962.0,0.22998551]
[1745274565275,0.07574861,86963.0,86961.0,0.22998815]
[1745274573212,0.31723063,86963.0,86960.0,0.22999061]
[1745274573352,0.31723063,86963.0,86961.0,0.22998693]
[1745274574047,0.07574861,86963.0,86962.0,0.22998551]
[1745274574223,0.07574861,86963.0,86961.0,0.22998693]
[1745274574931,0.07474861,86963.0,86961.0,0.22998693]
[1745274575340,0.07474861,86963.0,86962.0,0.22998551]
[1745274576345,0.07574861,86963.0,86962.0,0.22998551]
[1745274577054,0.07474861,86963.0,86962.0,0.22998551]
[1745274577758,0.07574861,86963.0,86962.0,0.22998551]
[1745274578063,0.07574861,86963.0,86961.0,0.22998756]
[1745274578468,0.07574861,86963.0,86962.0,0.22998551]
[1745274578972,0.07474861,86963.0,86962.0,0.22998551]
[1745274579191,0.07574861,86963.0,86962.0,0.22998551]
[1745274579822,0.07474861,86963.0,86962.0,0.22998551]
[1745274580167,0.07574861,86963.0,86961.0,0.22998756]
[1745274580539,0.07474861,86963.0,86961.0,0.22998756]
[1745274580756,0.07574861,86963.0,86962.0,0.22998551]
[1745274580955,0.07574861,86963.0,86961.0,0.22998756]
[1745274580956,0.07674861,86963.0,86961.0,0.22998756]
[1745274581245,0.07574861,86963.0,86961.0,0.22998756]
[1745274581459,0.07374861,86963.0,86961.0,0.22998756]
[1745274581670,0.07574861,86963.0,86961.0,0.22998756]
[1745274582738,0.07574861,86963.0,86962.0,0.22998551]
[1745274582934,0.07574861,86963.0,86962.0,0.0483]
[1745274583171,0.07574861,86963.0,86962.0,0.27828551]
[1745274583483,0.001,86963.0,86962.0,0.27828551]
[1745274584093,0.09919832,86963.0,86962.0,0.27828551]
[1745274584751,0.09919832,86963.0,86957.0,0.00045737]
[1745274584752,0.22999609,86958.0,86957.0,0.00045737]
[1745274587698,0.25443037,86958.0,86957.0,0.00045737]
[1745274593920,0.32813837,86958.0,86957.0,0.00045737]
[1745274597666,0.37443837,86958.0,86957.0,0.00045737]
[1745274598649,0.37543837,86958.0,86957.0,0.00045737]
[1745274599116,0.47195837,86958.0,86957.0,0.00045737]
[1745274599720,0.47295837,86958.0,86957.0,0.00045737]
[1745274599931,0.47195837,86958.0,86957.0,0.00045737]
[1745274600132,0.47295837,86958.0,86957.0,0.00045737]
[1745274600312,0.47495837,86958.0,86957.0,0.00045737]
[1745274602197,0.42865837,86958.0,86957.0,0.00045737]
[1745274602971,0.33213837,86958.0,86957.0,0.00045737]
[1745274603511,0.10214228,86958.0,86957.0,0.00045737]
[1745274603742,0.33213837,86958.0,86957.0,0.00045737]
[1745274605324,0.74803837,86958.0,86957.0,0.00045737]
[1745274605636,0.51804228,86958.0,86957.0,0.00045737]
[1745274605860,0.51804228,86958.0,86957.0,0.2304561]
[1745274606739,0.51404228,86958.0,86957.0,0.2304561]
[1745274606951,0.51504228,86958.0,86957.0,0.2304561]
[1745274607157,0.51604228,86958.0,86957.0,0.2304561]
[1745274607447,0.46604228,86958.0,86957.0,0.2304561]
[1745274608018,0.46604228,86958.0,86957.0,0.00045737]
[1745274608226,0.46604228,86958.0,86957.0,0.2304561]
[1745274609026,0.69603837,86958.0,86957.0,0.00045737]
[1745274609799,0.46604228,86958.0,86957.0,0.00045737]
[1745274610202,0.69603837,86958.0,86957.0,0.00045737]
[1745274614361,0.69603837,86958.0,86957.0,0.01415494]
[1745274615113,0.69603837,86958.0,86957.0,0.00045737]
[1745274617306,0.46604228,86958.0,86957.0,0.2304561]
[1745274617554,0.50830744,86958.0,86957.0,0.28975348]
[1745274618215,0.50830744,86958.0,86957.0,0.3221561]
[1745274619093,0.50830744,86958.0,86957.0,0.33585164]
[1745274619487,0.09240744,86958.0,86957.0,0.33585164]
[1745274619783,0.09240744,86958.0,86957.0,0.33085164]
[1745274621039,0.09240744,86958.0,86957.0,0.10539554]
[1745274621253,0.32240353,86958.0,86957.0,0.10539554]
[1745274621480,0.09240744,86958.0,86957.0,0.10539554]
[1745274622230,0.09240744,86958.0,86957.0,0.32169873]
[1745274622470,0.32240353,86958.0,86955.0,0.24150403]
[1745274622855,0.32240365,86958.0,86955.0,0.24150403]
[1745274623309,0.32140365,86958.0,86955.0,0.24150403]
[1745274623512,0.32040365,86958.0,86955.0,0.24150403]
[1745274623788,0.33190345,86958.0,86955.0,0.24150403]
[1745274624036,0.10190724,86958.0,86956.0,0.23000009]
[1745274624189,0.33190357,86958.0,86956.0,0.23000009]
[1745274624395,0.09040744,86958.0,86957.0,0.24369043]
[1745274625755,0.09140744,86958.0,86957.0,0.24369043]
[1745274626645,0.09240744,86958.0,86957.0,0.24369043]
[1745274628145,0.09240744,86958.0,86957.0,0.29009043]
[1745274628729,0.02032571,86958.0,86957.0,0.29009043]
[1745274628879,0.09237615,86958.0,86957.0,0.29009043]
[1745274629082,0.02032571,86958.0,86957.0,0.29009043]
[1745274630568,0.09237615,86958.0,86957.0,0.30085061]
[1745274632743,0.002,86958.0,86957.0,0.30085061]
[1745274632944,0.09237615,86958.0,86957.0,0.30085061]
[1745274634927,0.002,86958.0,86957.0,0.30085061]
[1745274638022,0.09239334,86958.0,86957.0,0.30085061]
[1745274638223,0.002,86958.0,86957.0,0.30085061]
[1745274638435,0.09239334,86958.0,86957.0,0.30085061]
[1745274638660,0.002,86958.0,86957.0,0.30085061]
[1745274639004,0.09239334,86958.0,86957.0,0.30085061]
[1745274639203,0.22997708,86967.0,86963.0,0.22998249]
[1745274639573,0.2299779,86965.0,86963.0,0.22998249]
[1745274639784,0.2299779,86965.0,86964.0,0.02445188]
[1745274639981,0.24147,86968.0,86964.0,0.02445188]
[1745274640447,0.24247485,86966.0,86964.0,0.02445188]
[1745274640878,0.24147485,86966.0,86965.0,0.0136917]
[1745274641081,0.24247485,86966.0,86965.0,0.02445188]
[1745274641295,0.24347485,86966.0,86965.0,0.02445188]
[1745274641523,0.31618799,86966.0,86965.0,0.02445188]
[1745274641716,0.33253485,86966.0,86965.0,0.02445188]
[1745274641926,0.33353485,86966.0,86965.0,0.02445188]
[1745274642130,0.33253485,86966.0,86965.0,0.02445188]
[1745274642507,0.10355874,86966.0,86965.0,0.02445188]
[1745274642714,0.33353367,86966.0,86965.0,0.02445188]
[1745274642920,0.33253367,86966.0,86965.0,0.02445188]
[1745274643096,0.33353367,86966.0,86965.0,0.02445188]
[1745274645736,0.33453367,86966.0,86965.0,0.02445188]
[1745274646135,0.52879773,86966.0,86965.0,0.02445188]
[1745274646564,0.52779773,86966.0,86965.0,0.01076018]
[1745274646983,0.52979773,86966.0,86965.0,0.01076018]
[1745274647374,0.52779773,86966.0,86965.0,0.01076018]
[1745274647578,0.23003952,86942.0,86939.0,0.2415462]
[1745274647909,0.23003952,86942.0,86939.0,0.35530214]
[1745274648100,0.01628073,86941.0,86940.0,0.0924647]
[1745274648303,0.24154144,86942.0,86940.0,0.10616528]
[1745274648633,0.07277927,86941.0,86940.0,0.10616528]
[1745274648804,0.07277927,86941.0,86940.0,0.0924647]
[1745274649647,0.07277927,86941.0,86940.0,0.10915755]
[1745274650073,0.07277927,86941.0,86940.0,0.10715755]
[1745274650281,0.07277927,86941.0,86940.0,0.01669285]
[1745274650502,0.07277927,86941.0,86940.0,0.24673655]
[1745274650922,0.241531,86946.0,86942.0,0.24154033]
[1745274651067,0.23003056,86945.0,86942.0,0.24154033]
[1745274651279,0.23003056,86945.0,86943.0,0.01369285]
[1745274651732,0.01628867,86944.0,86943.0,0.01369285]
[1745274651975,0.01628867,86944.0,86942.0,0.24154033]
[1745274652109,0.01628867,86944.0,86943.0,0.23003577]
[1745274652521,0.241531,86946.0,86943.0,0.24372223]
[1745274652729,0.01629132,86945.0,86943.0,0.2360021]
[1745274652935,0.01629132,86945.0,86944.0,0.01368646]
[1745274653146,0.01629132,86945.0,86944.0,0.24371958]
[1745274653555,0.01629132,86945.0,86944.0,0.01368646]
[1745274654148,0.24632179,86945.0,86944.0,0.01368646]
[1745274654656,0.01629132,86945.0,86944.0,0.01368646]
[1745274654995,0.01629132,86945.0,86944.0,0.01468646]
[1745274655530,0.01629132,86945.0,86944.0,0.24471958]
[1745274655755,0.24632179,86945.0,86944.0,0.01468646]
[1745274656267,0.01629132,86945.0,86944.0,0.01468646]
[1745274656470,0.08892136,86945.0,86944.0,0.01468646]
[1745274656694,0.2300301,86946.0,86944.0,0.01468646]
[1745274656919,0.01629132,86945.0,86944.0,0.01468646]
[1745274657125,0.08892136,86945.0,86944.0,0.01468646]
[1745274658153,0.08892136,86945.0,86944.0,0.01368646]
[1745274658359,0.08892136,86945.0,86944.0,0.01468646]
[1745274658485,0.31895183,86945.0,86944.0,0.01468646]
[1745274659006,0.08892136,86945.0,86944.0,0.01368646]
[1745274659352,0.31791669,86945.0,86944.0,0.01468646]
[1745274660213,0.31791669,86945.0,86944.0,0.28971958]
[1745274660214,0.08788622,86945.0,86944.0,0.28971958]
[1745274660416,0.08788622,86945.0,86944.0,0.33551958]
[1745274661248,0.08288622,86945.0,86944.0,0.33551958]
[1745274661648,0.08741257,86945.0,86944.0,0.33551958]
[1745274661948,0.08741257,86945.0,86944.0,0.10548646]
[1745274662170,0.08741257,86945.0,86944.0,0.33551958]
[1745274669043,0.08741257,86945.0,86944.0,0.24471958]
[1745274670174,0.08741257,86945.0,86944.0,0.40657552]
[1745274670398,0.01131391,86972.0,86963.0,0.24147985]
[1745274670751,0.01131391,86972.0,86965.0,0.22997757]
[1745274670993,0.01131391,86972.0,86965.0,0.34373351]
[1745274671200,0.01149742,86976.0,86965.0,0.34373351]
[1745274671623,0.00445709,86966.0,86965.0,0.34373351]
[1745274671831,0.00445709,86966.0,86965.0,0.35741997]
[1745274672047,0.00345709,86966.0,86965.0,0.35741997]
[1745274672254,0.00245709,86966.0,86965.0,0.35741997]
[1745274672458,0.00345709,86966.0,86965.0,0.35741997]
[1745274672804,0.00245709,86966.0,86965.0,0.35741997]
[1745274674171,0.00345709,86966.0,86965.0,0.35741997]
[1745274674375,0.00245709,86966.0,86965.0,0.35741997]
[1745274675298,0.00145709,86966.0,86965.0,0.35741997]
[1745274687676,0.00145709,86966.0,86965.0,0.37196082]
[1745274687987,0.00145709,86966.0,86965.0,0.46676082]
[1745274690022,0.00145709,86966.0,86965.0,0.46672879]
[1745274691078,0.00045709,86966.0,86965.0,0.80872879]
[1745274691284,0.00045709,86966.0,86965.0,0.80972879]
[1745274692237,0.00045709,86966.0,86965.0,0.80872879]
[1745274692454,0.00045709,86966.0,86965.0,0.80972879]
[1745274692851,0.00045709,86966.0,86965.0,0.80872879]
[1745274693052,0.00045709,86966.0,86965.0,0.80772879]
[1745274693248,0.00045709,86966.0,86965.0,0.80972879]
[1745274702236,0.00045709,86966.0,86965.0,0.80872879]
[1745274704535,0.00045709,86966.0,86965.0,0.81948179]
[1745274708505,0.00045709,86966.0,86965.0,0.37014094]
[1745274716992,0.00045709,86966.0,86965.0,0.38468179]
[1745274717202,0.00045709,86966.0,86965.0,0.48128179]
[1745274717618,0.00045709,86966.0,86965.0,0.82128179]
[1745274720648,0.00045709,86966.0,86965.0,0.37014094]
[1745274721104,0.00045709,86966.0,86965.0,0.256385]
[1745274721484,0.08862393,86966.0,86965.0,0.256385]
[1745274721735,0.00045709,86966.0,86965.0,0.256385]
[1745274724782,0.08858878,86966.0,86965.0,0.256385]
[1745274724988,0.00045709,86966.0,86965.0,0.256385]
[1745274725196,0.08858878,86966.0,86965.0,0.256385]
[1745274725326,0.00045709,86966.0,86965.0,0.256385]
[1745274727871,0.00045709,86966.0,86965.0,0.47608179]
[1745274734209,0.00045709,86966.0,86965.0,0.35938794]
[1745274735589,0.00045709,86966.0,86965.0,0.37015116]
[1745274737131,0.00045709,86966.0,86965.0,0.35938794]
[1745274742359,0.00045709,86966.0,86965.0,0.71392879]
[1745274742570,0.00045709,86966.0,86965.0,0.84129273]
[1745274744057,0.00045709,86966.0,86965.0,0.81012879]
[1745274748196,0.00045709,86966.0,86965.0,0.69938794]
[1745274748405,0.00045709,86966.0,86965.0,0.01565443]
[1745274748600,0.00045709,86966.0,86965.0,0.245632]
[1745274748802,0.08861318,86966.0,86965.0,0.245632]
[1745274748976,0.00045709,86966.0,86965.0,0.245632]
[1745274749177,0.08861318,86966.0,86965.0,0.245632]
[1745274749403,0.00045709,86966.0,86965.0,0.244632]
[1745274749610,0.08861318,86966.0,86965.0,0.244632]
[1745274749811,0.00045709,86966.0,86965.0,0.244632]
[1745274750034,0.08861318,86966.0,86965.0,0.244632]
[1745274750559,0.08861318,86966.0,86965.0,0.243632]
[1745274754233,0.31858811,86966.0,86965.0,0.01365443]
[1745274755016,0.24148877,86961.0,86958.0,0.24149486]
[1745274755226,0.01482221,86960.0,86958.0,0.24149486]
[1745274755428,0.01482221,86960.0,86958.0,0.22999506]
[1745274755837,0.01482221,86960.0,86959.0,0.22999344]
[1745274756053,0.001,86961.0,86960.0,0.2299908]
[1745274756263,0.08915609,86961.0,86960.0,0.2299908]
[1745274756480,0.08815609,86961.0,86960.0,0.2299908]
[1745274757821,0.50405609,86961.0,86960.0,0.2299908]
[1745274758033,0.51555549,86961.0,86956.0,0.01150006]
[1745274758252,0.01149954,86960.0,86957.0,0.24149866]
[1745274758565,0.24149186,86960.0,86958.0,0.22999598]
[1745274758902,0.01481957,86959.0,86957.0,0.22999873]
[1745274760189,0.24149589,86958.0,86955.0,0.23000304]
[1745274760402,0.24481338,86959.0,86957.0,0.22999873]
[1745274760612,0.24249348,86959.0,86956.0,0.22999952]
[1745274760815,0.07324128,86958.0,86957.0,0.22999634]
[1745274761048,0.07324128,86958.0,86949.0,0.01150099]
[1745274761049,0.22999873,86957.0,86949.0,0.01150099]
[1745274761279,0.23001265,86952.0,86949.0,0.01150099]
[1745274761517,0.24150916,86954.0,86951.0,0.23001424]
[1745274761742,0.23000784,86954.0,86951.0,0.24151497]
[1745274762549,0.0148037,86953.0,86952.0,0.23001196]
[1745274763322,0.0148037,86953.0,86951.0,0.24151497]
[1745274763530,0.23000748,86954.0,86952.0,0.23001196]
[1745274764974,0.24147063,86968.0,86958.0,0.0114998]
[1745274765192,0.23043253,86966.0,86960.0,0.2299908]
[1745274765406,0.01149887,86965.0,86960.0,0.2299908]